bitfinex/quotes_SOLUSD_20251202
["timestamp","ask_amount","ask_price","bid_price","bid_amount"]
[1764681060039,0.69,129.42,129.39,16.27939314]
[1764681060441,0.69,129.42,129.39,7.72857253]
[1764681060663,0.69,129.42,129.4,8.55082061]
[1764681060846,32.73377332,129.44,129.41,8.55082061]
[1764681061045,0.69,129.43,129.42,8.55082061]
[1764681061252,0.69,129.43,129.4,8.55082061]
[1764681061451,0.69,129.43,129.39,35.60082447]
[1764681062480,0.69,129.43,129.39,27.05000386]
[1764681062646,0.69,129.43,129.39,35.60082447]
[1764681063052,0.69,129.43,129.4,8.55082061]
[1764681063268,9.33,129.43,129.4,8.55082061]
[1764681063665,0.69,129.42,129.39,27.05000386]
[1764681065374,0.69,129.42,129.39,35.60082447]
[1764681065678,24.09377332,129.44,129.41,8.55082061]
[1764681066497,24.09377332,129.44,129.42,8.55082061]
[1764681066851,23.40377332,129.44,129.42,8.55082061]
[1764681067069,23.40377332,129.44,129.43,7.72618403]
[1764681067262,24.09377332,129.44,129.43,7.72618403]
[1764681069157,23.40377332,129.44,129.43,7.72618403]
[1764681069979,23.40377332,129.48,129.46,8.80994492]
[1764681070152,0.69,129.54,129.48,8.80994492]
[1764681070352,0.69,129.54,129.49,8.64]
[1764681070565,0.69,129.54,129.49,9.3]
[1764681070773,0.69,129.54,129.5,9.21082061]
[1764681071178,17.29082061,129.57,129.5,25.74277325]
[1764681071179,0.79,129.57,129.5,25.74277325]
[1764681071354,0.1,129.57,129.52,33.66962953]
[1764681071783,0.1,129.57,129.52,25.82880892]
[1764681071975,0.68,129.56,129.52,24.85968461]
[1764681072281,24.08377332,129.55,129.51,8.64]
[1764681072500,24.08377332,129.55,129.51,17.19082061]
[1764681072798,24.08377332,129.53,129.51,17.19082061]
[1764681072999,23.40377332,129.53,129.51,17.19082061]
[1764681073173,23.40377332,129.53,129.52,16.27163592]
[1764681075089,23.40377332,129.53,129.52,16.98163592]
[1764681075988,23.40377332,129.53,129.52,16.27163592]
[1764681076368,23.40377332,129.53,129.52,16.98163592]
[1764681076690,23.40377332,129.55,129.52,45.09361913]
[1764681076894,23.40377332,129.55,129.54,8.55082061]
[1764681077091,23.40377332,129.55,129.54,0.71]
[1764681077291,23.40377332,129.55,129.54,9.26082061]
[1764681077991,23.40377332,129.55,129.54,0.71]
[1764681078292,23.40377332,129.55,129.54,9.26082061]
[1764681078791,0.1,129.57,129.56,16.26925222]
[1764681079088,0.1,129.57,129.56,24.90925222]
[1764681079313,0.1,129.57,129.56,16.35843161]
[1764681079494,0.1,129.57,129.56,34.42919714]
[1764681079679,23.40377332,129.58,129.56,50.73806114]
[1764681079887,23.40377332,129.58,129.57,18.07076553]
[1764681080071,1e-08,129.58,129.57,18.07076553]
[1764681080680,0.68000001,129.58,129.56,41.21811622]
[1764681080889,1e-08,129.58,129.56,24.90925222]
[1764681081295,1e-08,129.58,129.57,8.55082061]
[1764681081496,0.68000001,129.58,129.56,16.35843161]
[1764681082000,1e-08,129.58,129.56,7.71843161]
[1764681082177,1e-08,129.58,129.56,16.26925222]
[1764681082377,0.68000001,129.58,129.56,16.26925222]
[1764681082780,0.68000001,129.58,129.56,7.71843161]
[1764681086508,0.68000001,129.58,129.56,27.01451064]
[1764681089698,0.68000001,129.58,129.53,9.51994492]
[1764681089699,14.07156839,129.56,129.53,27.93935906]
[1764681090007,14.07156839,129.56,129.53,36.49017967]
[1764681090407,0.68,129.55,129.53,36.49017967]
[1764681091019,14.75156839,129.56,129.54,7.71962328]
[1764681091306,0.68,129.55,129.54,7.71962328]
[1764681092119,0.68,129.55,129.53,8.64]
[1764681092289,9.23082061,129.55,129.5,7.72200772]
[1764681092500,0.68,129.54,129.5,16.36200772]
[1764681092694,14.07156839,129.56,129.52,8.55082061]
[1764681092898,14.79156839,129.56,129.52,17.19082061]
[1764681093129,0.72,129.55,129.52,17.19082061]
[1764681093632,14.07156839,129.56,129.53,16.27103986]
[1764681093793,14.79156839,129.56,129.53,16.27103986]
[1764681093989,14.07156839,129.56,129.54,8.64]
[1764681094209,14.07156839,129.56,129.54,9.3]
[1764681094488,14.07156839,129.56,129.54,8.64]
[1764681094693,0.72,129.55,129.54,8.64]
[1764681094892,14.07156839,129.56,129.54,8.64]
[1764681095099,0.72,129.55,129.54,8.64]
[1764681095331,1e-08,129.58,129.55,8.80994492]
[1764681095494,1e-08,129.58,129.57,17.36076553]
[1764681095694,1e-08,129.58,129.57,25.07860144]
[1764681095934,1e-08,129.58,129.57,25.73860144]
[1764681098038,1e-08,129.58,129.57,7.71783591]
[1764681098198,1e-08,129.58,129.57,16.35783591]
[1764681098398,1e-08,129.58,129.57,25.56865652]
[1764681099496,1e-08,129.58,129.57,24.90865652]
[1764681099897,0.72000001,129.58,129.57,8.64]
[1764681100125,9.27082062,129.58,129.53,7.72021925]
[1764681100418,8.55082061,129.57,129.53,7.72021925]
[1764681100600,8.55082061,129.55,129.49,8.55082061]
[1764681100798,0.72,129.54,129.5,8.64]
[1764681102126,0.72,129.54,129.51,7.72141147]
[1764681103522,9.27082061,129.54,129.51,7.72141147]
[1764681103918,0.67,129.53,129.51,7.72141147]
[1764681104110,9.22082061,129.53,129.51,7.72141147]
[1764681104311,9.22082061,129.53,129.5,16.36173511]
[1764681104506,8.55082061,129.51,129.47,19.30889498]
[1764681104710,8.55082061,129.5,129.45,7.72499034]
[1764681104925,8.55082061,129.49,129.45,7.72499034]
[1764681105127,8.55082061,129.47,129.44,16.36545508]
[1764681105303,8.55082061,129.48,129.44,16.36545508]
[1764681105501,8.55082061,129.49,129.44,35.67942294]
[1764681105816,9.22082061,129.49,129.44,35.67942294]
[1764681106129,0.67,129.48,129.44,35.67942294]
[1764681106298,8.55082061,129.47,129.44,16.36545508]
[1764681106498,9.22082061,129.48,129.44,16.36545508]
[1764681106818,9.22082061,129.47,129.44,16.36545508]
[1764681107014,0.67,129.47,129.44,16.36545508]
[1764681107219,0.67,129.46,129.44,16.36545508]
[1764681108705,0.67,129.5,129.45,0.69]
[1764681108904,8.55082061,129.51,129.45,0.69]
[1764681109112,9.22082061,129.49,129.44,35.67942294]
[1764681109616,0.67,129.48,129.44,36.36942294]
[1764681110234,9.22082061,129.48,129.44,35.67942294]
[1764681110526,9.22082061,129.48,129.44,16.36545508]
[1764681110527,8.55082061,129.47,129.44,16.36545508]
[1764681110733,9.22082061,129.47,129.44,16.36545508]
[1764681110933,9.22082061,129.46,129.43,7.72603288]
[1764681111308,0.67,129.45,129.43,7.72603288]
[1764681112320,0.67,129.45,129.42,27.95609104]
[1764681112321,9.22082061,129.45,129.42,16.36654236]
[1764681112837,9.22082061,129.44,129.41,7.72719427]
[1764681113332,0.67,129.43,129.41,7.72719427]
[1764681113524,9.22082061,129.43,129.41,7.72719427]
[1764681113835,9.22082061,129.43,129.4,16.5678075]
[1764681114036,0.67,129.42,129.4,16.5678075]
[1764681114202,9.22082061,129.42,129.4,0.2]
[1764681114407,5.69356355,129.42,129.4,0.2]
[1764681114610,0.67,129.41,129.4,0.2]
[1764681114908,0.67,129.41,129.4,7.92797527]
[1764681115228,0.67,129.41,129.4,0.2]
[1764681115734,0.67,129.41,129.4,7.92797527]
[1764681116225,0.67,129.45,129.4,32.96147699]
[1764681116418,0.67,129.45,129.41,8.64]
[1764681116834,0.67,129.45,129.41,9.33]
[1764681117042,0.67,129.45,129.41,8.64]
[1764681117834,0.67,129.45,129.42,7.72678102]
[1764681118337,5.69356355,129.45,129.42,7.72678102]
[1764681118834,0.67,129.44,129.42,7.72678102]
[1764681120420,0.67,129.44,129.41,7.72714733]
[1764681120744,5.02356355,129.43,129.41,7.72714733]
[1764681121110,0.67,129.42,129.41,7.72714733]
[1764681121433,0.67,129.45,129.41,13.44071088]
[1764681121626,0.67,129.45,129.41,71.84071088]
[1764681122832,0.67,129.45,129.41,66.81714733]
[1764681123147,0.67,129.45,129.41,79.79071088]
[1764681123352,0.67,129.45,129.41,80.48071088]
[1764681123647,5.69356355,129.45,129.41,74.76714733]
[1764681123845,5.69356355,129.45,129.41,75.45714733]
[1764681124034,5.02356355,129.43,129.41,66.12714733]
[1764681124442,5.69356355,129.43,129.41,66.12714733]
[1764681124744,0.67,129.43,129.41,66.12714733]
[1764681125046,5.69356355,129.43,129.41,66.12714733]
[1764681125340,7.72442191,129.46,129.41,66.12714733]
[1764681125539,0.67,129.46,129.42,8.62]
[1764681125748,0.67,129.5,129.45,5.02356355]
[1764681125963,48.30701549,129.57,129.46,8.64]
[1764681126119,0.67,129.51,129.47,8.64]
[1764681126636,5.02356355,129.5,129.47,8.64]
[1764681127029,0.67,129.49,129.47,8.64]
[1764681127432,5.02356355,129.48,129.47,7.72340964]
[1764681127625,0.67,129.49,129.46,7.72411179]
[1764681127830,5.69356355,129.48,129.46,7.72411179]
[1764681128026,5.69356355,129.48,129.45,7.72474676]
[1764681128231,0.67,129.47,129.45,7.72474676]
[1764681128850,0.67,129.47,129.41,63.75569942]
[1764681128851,5.69356355,129.47,129.41,25.03130114]
[1764681129038,5.69356355,129.47,129.41,33.67130114]
[1764681129238,5.02356355,129.47,129.41,33.67130114]
[1764681129445,0.67,129.46,129.42,7.72678102]
[1764681129620,19.30707938,129.49,129.43,5.02356355]
[1764681129621,13.4163667,129.49,129.43,5.02356355]
[1764681129946,0.67,129.48,129.44,8.64]
[1764681130639,0.67,129.48,129.45,7.72499034]
[1764681132045,0.67,129.5,129.45,91.18102974]
[1764681132248,0.67,129.5,129.46,0.72]
[1764681133025,0.67,129.52,129.47,8.64]
[1764681133228,5.69356355,129.52,129.47,8.64]
[1764681133427,5.69356355,129.52,129.5,5.0]
[1764681133630,0.67,129.51,129.5,5.0]
[1764681134124,5.69356355,129.51,129.5,5.0]
[1764681134349,13.41497502,129.51,129.5,5.0]
[1764681135055,8.39141147,129.51,129.5,5.0]
[1764681135253,18.43853857,129.51,129.5,5.0]
[1764681135743,34.74740257,129.51,129.5,5.0]
[1764681135945,29.72383902,129.51,129.5,5.0]
[1764681136346,13.41497502,129.51,129.5,5.0]
[1764681137958,22.05497502,129.51,129.5,5.0]
[1764681138256,13.41497502,129.51,129.5,5.0]
[1764681138551,22.05497502,129.51,129.5,5.0]
[1764681139735,13.41497502,129.51,129.5,5.0]
[1764681139930,7.72108224,129.52,129.5,5.0]
[1764681140131,13.66356355,129.52,129.5,5.0]
[1764681140341,5.69356355,129.51,129.5,5.0]
[1764681140943,5.02356355,129.51,129.5,5.0]
[1764681141255,5.69356355,129.51,129.5,2.84]
[1764681142068,13.41497502,129.51,129.5,2.84]
[1764681144336,18.43853857,129.51,129.5,2.84]
[1764681146643,27.05853857,129.51,129.5,2.84]
[1764681148057,22.03497502,129.51,129.5,2.84]
[1764681149639,13.41497502,129.51,129.5,2.84]
[1764681149847,12.74305532,129.55,129.5,11.28185414]
[1764681150059,12.74182995,129.57,129.51,5.74356355]
[1764681150363,5.02356355,129.56,129.51,5.74356355]
[1764681150534,5.02356355,129.56,129.52,0.72]
[1764681150963,5.69356355,129.57,129.52,0.72]
[1764681152067,5.02356355,129.56,129.53,7.72021925]
[1764681152272,5.02356355,129.56,129.52,20.02154785]
[1764681152452,0.72,129.56,129.52,0.72]
[1764681152977,0.72,129.56,129.52,8.44081451]
[1764681153143,5.02356356,129.58,129.53,5.02356355]
[1764681153465,1e-08,129.58,129.54,5.02356355]
[1764681153669,1e-08,129.58,129.55,0.72]
[1764681153875,1e-08,129.58,129.55,5.74356355]
[1764681154078,1e-08,129.58,129.56,7.71843161]
[1764681154285,1e-08,129.58,129.56,8.43843161]
[1764681155575,5.02356356,129.58,129.56,0.72]
[1764681155872,1e-08,129.58,129.56,0.72]
[1764681156461,1e-08,129.58,129.55,7.71876518]
[1764681156792,5.02356356,129.58,129.55,8.43876518]
[1764681157691,1e-08,129.58,129.56,0.72]
[1764681158163,1e-08,129.58,129.57,7.71783591]
[1764681158368,1e-08,129.58,129.54,0.72]
[1764681158960,1e-08,129.58,129.54,66.63962328]
[1764681158961,5.74356356,129.58,129.54,66.63962328]
[1764681159368,5.02356355,129.57,129.54,66.63962328]
[1764681159584,5.74356355,129.57,129.54,66.63962328]
[1764681159759,5.02356355,129.57,129.54,66.63962328]
[1764681159959,5.02356356,129.58,129.54,65.91962328]
[1764681160170,1e-08,129.58,129.55,8.43863513]
[1764681160376,5.02356356,129.58,129.55,8.43863513]
[1764681161389,5.74356356,129.58,129.55,8.43863513]
[1764681163086,0.72000001,129.58,129.55,8.43863513]
[1764681163278,5.02356355,129.57,129.55,7.71863513]
[1764681163659,5.67356355,129.56,129.53,7.71979095]
[1764681163859,5.02356355,129.55,129.53,7.71979095]
[1764681164292,5.67356355,129.56,129.53,7.71979095]
[1764681165171,13.39219597,129.56,129.53,7.71979095]
[1764681166182,5.02356355,129.55,129.52,0.72]
[1764681166387,5.67356355,129.55,129.52,0.72]
[1764681166591,5.02356355,129.55,129.51,0.72]
[1764681166889,5.67356355,129.54,129.51,0.72]
[1764681167070,12.74338543,129.54,129.51,0.72]
[1764681167798,5.02356355,129.54,129.51,8.44092313]
[1764681168094,13.39270952,129.55,129.51,8.44092313]
[1764681168593,19.29607903,129.56,129.52,0.72]
[1764681168594,7.71853692,129.56,129.52,0.72]
[1764681168792,13.39210047,129.56,129.52,0.72]
[1764681169168,13.39210047,129.56,129.52,8.44031997]
[1764681169374,23.40377332,129.65,129.63,16.308864]
[1764681169570,23.40377332,129.67,129.66,16.308864]
[1764681169881,23.40377332,129.67,129.66,50.80622196]
[1764681170387,23.40377332,129.67,129.66,20.81379441]
[1764681170576,23.40377332,129.67,129.64,8.66]
[1764681170775,23.40377332,129.67,129.65,5.02356355]
[1764681171193,23.40377332,129.67,129.63,7.713801]
[1764681171400,0.65,129.66,129.64,5.02356355]
[1764681172493,0.65,129.66,129.63,7.713801]
[1764681173076,0.65,129.66,129.63,26.99946018]
[1764681173604,0.65,129.66,129.65,5.02356355]
[1764681173978,0.65,129.66,129.65,12.7366372]
[1764681174381,0.65,129.66,129.62,8.66]
[1764681174382,9.31,129.66,129.62,8.5173208]
[1764681174581,9.31,129.66,129.62,7.71483894]
[1764681174804,8.5173208,129.63,129.52,38.60407659]
[1764681174992,8.66,129.62,129.58,8.5173208]
[1764681175303,8.66,129.62,129.59,8.5173208]
[1764681175510,0.65,129.61,129.59,8.5173208]
[1764681176180,0.65,129.61,129.6,7.71604938]
[1764681177287,0.65,129.65,129.6,35.52349363]
[1764681177489,0.65,129.64,129.62,8.5173208]
[1764681178306,0.65,129.64,129.62,16.23196996]
[1764681178605,0.65,129.64,129.63,8.5173208]
[1764681179286,0.65,129.64,129.62,16.23196996]
[1764681179488,24.05377332,129.67,129.63,8.5173208]
[1764681179689,0.65,129.66,129.63,8.5173208]
[1764681179995,0.65,129.66,129.62,7.71464916]
[1764681180396,0.65,129.66,129.62,16.23196996]
[1764681182214,0.65,129.66,129.6,27.94946124]
[1764681182215,0.65,129.66,129.63,8.5173208]
[1764681183492,0.65,129.66,129.64,7.71366862]
[1764681187416,0.65,129.66,129.63,58.2]
[1764681188811,8.36250286,129.66,129.63,58.2]
[1764681189000,17.00250286,129.66,129.63,58.2]
[1764681189307,0.65,129.65,129.62,65.91441998]
[1764681190018,0.65,129.65,129.62,58.2]
[1764681191205,0.65,129.65,129.62,65.91484325]
[1764681191593,0.65,129.65,129.62,74.43216405]
[1764681192513,0.65,129.65,129.62,65.91484325]
[1764681192704,8.36315379,129.65,129.62,65.91484325]
[1764681193112,0.7,129.65,129.62,65.91484325]
[1764681193521,8.41311589,129.65,129.62,58.2]
[1764681193725,16.93043669,129.65,129.62,58.2]
[1764681193917,0.7,129.64,129.62,58.2]
[1764681194214,0.7,129.64,129.6,65.91579189]
[1764681195217,0.7,129.64,129.6,74.43311269]
[1764681195399,0.7,129.64,129.58,66.84]
[1764681195400,16.35426367,129.63,129.58,66.84]
[1764681195602,0.7,129.64,129.61,8.5173208]
[1764681195801,8.64,129.63,129.61,8.5173208]
[1764681196095,0.7,129.64,129.61,8.5173208]
[1764681197327,8.41374218,129.64,129.61,8.5173208]
[1764681197922,8.41374218,129.64,129.61,16.23275906]
[1764681198999,0.7,129.63,129.61,16.23275906]
[1764681199203,0.7,129.63,129.59,7.7166448]
[1764681199517,0.7,129.63,129.61,8.5173208]
[1764681200922,0.7,129.63,129.59,7.7166448]
[1764681201116,0.7,129.63,129.6,8.5173208]
[1764681201497,0.7,129.63,129.6,16.23317119]
[1764681201697,0.7,129.63,129.61,8.5173208]
[1764681202444,0.7,129.63,129.6,7.71585039]
[1764681202606,0.7,129.63,129.6,16.23317119]
[1764681203609,0.7,129.63,129.6,7.71585039]
[1764681206629,8.41427632,129.63,129.59,7.7166448]
[1764681207103,0.7,129.62,129.59,7.7166448]
[1764681207901,0.7,129.62,129.58,8.64]
[1764681208236,17.1373208,129.61,129.56,35.53008281]
[1764681208711,8.41604938,129.6,129.56,35.53008281]
[1764681209223,8.41604938,129.6,129.56,16.23535835]
[1764681209526,0.7,129.59,129.56,16.23535835]
[1764681209826,0.7,129.59,129.56,7.71803755]
[1764681210021,0.7,129.59,129.56,16.23535835]
[1764681210922,8.41561156,129.61,129.57,8.5173208]
[1764681211310,0.7,129.6,129.57,8.5173208]
[1764681211627,0.7,129.6,129.56,7.71803755]
[1764681211825,0.7,129.6,129.57,8.5173208]
[1764681212013,0.7,129.6,129.55,16.33871245]
[1764681212215,0.7,129.6,129.57,8.5173208]
[1764681212908,0.7,129.6,129.57,16.2346342]
[1764681213113,0.7,129.6,129.57,74.4346342]
[1764681213713,0.66,129.63,129.59,8.5173208]
[1764681214019,0.66,129.63,129.59,58.2]
[1764681214611,9.1773208,129.63,129.59,58.2]
[1764681214805,0.66,129.62,129.59,65.91650102]
[1764681216232,0.66,129.62,129.59,58.2]
[1764681216453,8.5173208,129.6,129.59,58.2]
[1764681216748,8.5173208,129.6,129.56,74.53831392]
[1764681216946,9.1773208,129.59,129.56,66.82]
[1764681217242,9.1773208,129.59,129.56,74.53837417]
[1764681217461,0.66,129.59,129.56,66.82]
[1764681217609,0.66,129.59,129.53,28.10947052]
[1764681217610,9.1773208,129.58,129.54,7.71933524]
[1764681217809,16.89476622,129.58,129.54,7.71933524]
[1764681218031,0.66,129.57,129.54,7.71933524]
[1764681218403,24.928864,129.64,129.55,8.62]
[1764681218730,0.66,129.61,129.56,3.33887685]
[1764681219436,3.99887685,129.61,129.56,3.33887685]
[1764681219929,0.66,129.61,129.57,27.0124257]
[1764681220133,0.66,129.61,129.57,30.35130255]
[1764681220544,0.66,129.61,129.57,27.0124257]
[1764681222726,3.99887685,129.61,129.57,27.0124257]
[1764681223018,21.79,129.57,129.56,7.71814812]
[1764681223218,21.79,129.57,129.56,65.91814812]
[1764681235241,21.79,129.57,129.56,58.2]
[1764681235447,22.46,129.57,129.56,58.2]
[1764681235828,22.46,129.57,129.56,65.91843161]
[1764681236140,17.46,129.57,129.56,65.91843161]
[1764681236315,16.79,129.57,129.56,65.91843161]
[1764681241652,17.46,129.57,129.56,65.91843161]
[1764681241833,19.59779712,129.57,129.56,58.2]
[1764681242767,24.07377332,129.67,129.59,16.308864]
[1764681242942,24.07377332,129.67,129.63,18.44666112]
[1764681243129,24.07377332,129.67,129.63,27.08666112]
[1764681243542,24.07377332,129.67,129.64,18.9663855]
[1764681243850,24.07377332,129.67,129.65,7.71307365]
[1764681247555,23.40377332,129.67,129.65,7.71307365]
[1764681249964,23.40377332,129.67,129.66,2.13779712]
[1764681250361,23.40377332,129.67,129.66,7.71247879]
[1764681251154,23.40377332,129.67,129.66,30.89013552]
[1764681251735,23.40377332,129.67,129.66,33.02793264]
[1764681253539,23.40377332,129.67,129.66,30.89013552]
[1764681253962,23.40377332,129.67,129.66,33.02793264]
[1764681257770,23.40377332,129.67,129.66,91.22793264]
[1764681259353,1e-08,129.67,129.66,100.03787756]
[1764681259760,1e-08,129.67,129.66,30.89013552]
[1764681259960,0.69000001,129.67,129.66,7.71247879]
[1764681262069,18.11435941,129.69,129.66,9.85027591]
[1764681262872,18.11435941,129.69,129.66,7.71247879]
[1764681264078,0.69,129.68,129.66,7.71247879]
[1764681264655,8.62,129.67,129.66,7.71247879]
[1764681265054,8.62,129.67,129.66,9.85027591]
[1764681265369,9.31,129.67,129.66,9.85027591]
[1764681267484,8.62,129.67,129.66,9.85027591]
[1764681267885,8.62,129.67,129.66,19.79810978]
[1764681268088,0.69,129.68,129.66,19.79810978]
[1764681268265,9.29,129.68,129.66,19.79810978]
[1764681268985,9.29,129.68,129.66,19.58810978]
[1764681269368,9.29,129.68,129.66,38.86930675]
[1764681269580,0.69,129.67,129.66,38.86930675]
[1764681271456,0.69,129.67,129.66,28.92147288]
[1764681271650,0.69,129.67,129.66,17.45031266]
[1764681272356,0.69,129.67,129.66,7.50247879]
[1764681272866,0.69,129.67,129.65,11.63215653]
[1764681272867,0.69,129.67,129.65,7.71263823]
[1764681275568,18.44666112,129.66,129.6,23.36130091]
[1764681275774,18.44666112,129.66,129.57,9.85563303]
[1764681275775,2.13779712,129.62,129.57,9.85563303]
[1764681275982,8.6,129.61,129.57,9.85563303]
[1764681276290,9.3,129.61,129.57,9.85563303]
[1764681276491,0.7,129.6,129.57,7.71783591]
[1764681276673,0.7,129.6,129.57,9.85563303]
[1764681276987,2.13779712,129.58,129.53,0.2]
[1764681277187,8.6,129.57,129.53,7.92011989]
[1764681277396,8.6,129.57,129.53,10.05791701]
[1764681277597,0.7,129.56,129.53,10.05791701]
[1764681278179,9.85266279,129.6,129.54,2.81779712]
[1764681278382,0.7,129.58,129.56,2.13779712]
[1764681278891,0.7,129.58,129.54,0.68]
[1764681278892,9.3,129.58,129.55,2.13779712]
[1764681279095,0.7,129.58,129.55,2.13779712]
[1764681279270,9.3,129.58,129.55,2.13779712]
[1764681279697,8.8,129.58,129.55,2.81779712]
[1764681279878,8.6,129.59,129.56,7.71843161]
[1764681280880,8.6,129.59,129.55,10.53663118]
[1764681281693,8.6,129.59,129.56,2.81779712]
[1764681281871,8.6,129.59,129.57,7.71783591]
[1764681282068,8.6,129.59,129.57,65.91783591]
[1764681282282,9.26,129.59,129.57,65.91783591]
[1764681282482,0.66,129.58,129.57,58.2]
[1764681284777,10.51503743,129.58,129.54,58.2]
[1764681285089,2.13779712,129.55,129.54,58.2]
[1764681285289,2.13779712,129.55,129.53,0.2]
[1764681285290,8.6,129.55,129.53,0.2]
[1764681285496,8.6,129.56,129.53,8.6000076]
[1764681286605,9.26,129.56,129.53,8.6000076]
[1764681288696,0.66,129.56,129.53,8.6000076]
[1764681288903,9.26,129.56,129.53,8.6000076]
[1764681289379,9.26,129.56,129.53,7.9200076]
[1764681289582,9.26,129.55,129.53,0.2]
[1764681290497,8.37962328,129.54,129.53,0.2]
[1764681290694,10.5174204,129.54,129.53,0.2]
[1764681292306,19.1174204,129.54,129.53,0.2]
[1764681293012,11.39779712,129.54,129.53,0.2]
[1764681293804,19.1174204,129.54,129.53,0.2]
[1764681296414,20.32274761,129.54,129.53,0.2]
[1764681297615,9.26,129.54,129.53,0.2]
[1764681297818,12.60312433,129.54,129.53,0.2]
[1764681298610,20.32274761,129.54,129.53,0.2]
[1764681300605,11.72274761,129.54,129.53,0.2]
[1764681300806,20.32274761,129.54,129.53,0.2]
[1764681301195,7.71908547,129.55,129.53,0.2]
[1764681301392,7.71724031,129.58,129.54,3.34312433]
[1764681301620,8.6,129.58,129.55,0.68]
[1764681301791,8.6,129.58,129.55,4.02312433]
[1764681302222,8.6,129.58,129.56,8.39843161]
[1764681302420,12.41151167,129.6,129.56,11.74155594]
[1764681302728,16.31662518,129.6,129.57,0.68]
[1764681302907,16.97662518,129.6,129.57,0.68]
[1764681303503,19.65974951,129.6,129.57,7.71781541]
[1764681303893,0.66,129.59,129.57,7.71781541]
[1764681304621,0.66,129.59,129.55,27.69656531]
[1764681304928,8.03679815,129.63,129.58,3.34312433]
[1764681305129,8.6,129.62,129.58,3.34312433]
[1764681305297,26.99953262,129.64,129.58,3.34312433]
[1764681305298,4.0329422,129.65,129.61,3.34312433]
[1764681305495,16.97293374,129.66,129.61,3.34312433]
[1764681305695,0.66,129.68,129.63,19.65198833]
[1764681305920,9.26,129.68,129.63,19.65198833]
[1764681306188,20.54861571,129.69,129.67,3.34312433]
[1764681306189,9.49435941,129.69,129.67,3.34312433]
[1764681306392,9.49435941,129.69,129.67,11.05500412]
[1764681306604,9.49435941,129.69,129.67,8.39187979]
[1764681307109,9.49435941,129.69,129.67,11.73500412]
[1764681308348,9.49435941,129.69,129.67,8.39187979]
[1764681311806,9.49435941,129.69,129.67,0.68]
[1764681312829,9.49435941,129.69,129.67,8.39176257]
[1764681313541,9.49435941,129.69,129.68,0.66]
[1764681313846,9.49435941,129.69,129.68,8.37128932]
[1764681315135,9.49435941,129.69,129.68,7.71128932]
[1764681316743,9.49435941,129.69,129.67,11.71475882]
[1764681317331,9.49435941,129.69,129.67,8.37163449]
[1764681317638,9.49435941,129.69,129.67,11.71475882]
[1764681318153,10.15435941,129.69,129.65,16.968864]
[1764681318355,10.15435941,129.69,129.66,0.66]
[1764681318537,10.15435941,129.69,129.66,4.00312433]
[1764681318715,9.49435941,129.69,129.66,4.00312433]
[1764681319220,10.15435941,129.69,129.66,4.00312433]
[1764681319820,0.66,129.68,129.64,4.00312433]
[1764681320152,17.86520915,129.69,129.65,4.00312433]
[1764681320535,17.86520915,129.69,129.66,0.66]
[1764681322257,17.20520915,129.69,129.66,0.66]
[1764681322555,17.86520915,129.69,129.66,0.66]
[1764681323052,17.86520915,129.69,129.66,8.37246239]
[1764681323255,17.86520915,129.69,129.66,66.57246239]
[1764681324763,9.49435941,129.69,129.67,0.66]
[1764681324937,10.15435941,129.69,129.65,8.37285965]
[1764681325259,12.58312433,129.68,129.65,7.71285965]
[1764681325429,9.24,129.68,129.65,7.71285965]
[1764681325629,9.24,129.68,129.65,8.37285965]
[1764681325830,8.58,129.68,129.65,8.37285965]
[1764681326028,9.24,129.68,129.65,8.37285965]
[1764681326258,22.07748374,129.69,129.66,0.66]
[1764681326458,0.66,129.68,129.65,27.65554379]
[1764681326637,4.00312433,129.68,129.65,8.37285965]
[1764681326844,8.58,129.68,129.66,0.66]
[1764681327642,8.58,129.68,129.65,8.37285965]
[1764681328666,8.58,129.68,129.66,0.66]
[1764681328956,18.73435941,129.69,129.66,0.66]
[1764681329564,10.15435941,129.69,129.66,0.66]